[Event "*** Titled Tuesday 3|2 Blitz"]
[Site "Chess.com"]
[Date "2016.02.02"]
[Round "2"]
[White "GM_Huschenbeth"]
[Black "Yaacovn"]
[Result "0-1"]
[WhiteElo "2241"]
[BlackElo "2558"]
[TimeControl "180+2"]
[EndTime "17:21:26 PST"]
[Termination "Yaacovn won on time"]

1. e4 {[%clk 0:03:01.9]} 1... c6 {[%clk 0:03:00.9]} 2. d4 {[%clk 0:03:02.7]}
2... d5 {[%clk 0:03:02.8]} 3. e5 {[%clk 0:03:04.4]} 3... Bf5 {[%clk 0:03:03.6]}
4. Nf3 {[%clk 0:03:06.1]} 4... e6 {[%clk 0:03:03.9]} 5. Be2 {[%clk 0:03:07.9]}
5... Ne7 {[%clk 0:03:03.9]} 6. O-O {[%clk 0:03:09.1]} 6... Bg6 {[%clk
0:03:04.1]} 7. Nbd2 {[%clk 0:03:10.2]} 7... Nf5 {[%clk 0:03:04.3]} 8. Nb3 {[%clk
0:03:11.5]} 8... Nd7 {[%clk 0:03:04.2]} 9. a4 {[%clk 0:03:12.5]} 9... a6 {[%clk
0:03:03.5]} 10. a5 {[%clk 0:03:10.2]} 10... c5 {[%clk 0:03:04.3]} 11. c3 {[%clk
0:03:06.6]} 11... Rc8 {[%clk 0:03:04.9]} 12. Bd2 {[%clk 0:03:04.1]} 12... Be7
{[%clk 0:02:59.8]} 13. Nc1 {[%clk 0:02:57.9]} 13... O-O {[%clk 0:02:57.8]} 14.
Nd3 {[%clk 0:02:55.8]} 14... cxd4 {[%clk 0:02:59.3]} 15. cxd4 {[%clk 0:02:57.7]}
15... Nb8 {[%clk 0:03:00.5]} 16. Nf4 {[%clk 0:02:54.3]} 16... Nc6 {[%clk
0:03:00.3]} 17. Bc3 {[%clk 0:02:52.4]} 17... Bb4 {[%clk 0:03:00.7]} 18. Qa4
{[%clk 0:02:40.2]} 18... Bxc3 {[%clk 0:02:59.8]} 19. bxc3 {[%clk 0:02:42.1]}
19... Nh4 {[%clk 0:02:59.4]} 20. Nxh4 {[%clk 0:02:37.9]} 20... Qxh4 {[%clk
0:03:01.3]} 21. g3 {[%clk 0:02:23.3]} 21... Qe7 {[%clk 0:03:02.3]} 22. Nxg6
{[%clk 0:02:21.8]} 22... hxg6 {[%clk 0:03:03.2]} 23. Rfb1 {[%clk 0:02:22.4]}
23... Rc7 {[%clk 0:02:58.8]} 24. Rb2 {[%clk 0:02:17.7]} 24... Rfc8 {[%clk
0:02:59.7]} 25. Rab1 {[%clk 0:02:18.6]} 25... Nd8 {[%clk 0:03:00.8]} 26. Qb4
{[%clk 0:02:10.5]} 26... Qxb4 {[%clk 0:02:54]} 27. cxb4 {[%clk 0:02:12.4]} 27...
Rc1+ {[%clk 0:02:52.3]} 28. Bf1 {[%clk 0:02:03.9]} 28... Rxb1 {[%clk 0:02:27.4]}
29. Rxb1 {[%clk 0:02:05.8]} 29... Kf8 {[%clk 0:02:24.4]} 30. b5 {[%clk
0:02:01.9]} 30... axb5 {[%clk 0:02:25.6]} 31. Rxb5 {[%clk 0:02:03.7]} 31... Rc1
{[%clk 0:02:23.6]} 32. Kg2 {[%clk 0:02:01.4]} 32... Rd1 {[%clk 0:02:24.5]} 33.
Rb4 {[%clk 0:01:58.4]} 33... Ra1 {[%clk 0:02:23.5]} 34. a6 {[%clk 0:01:40.5]}
34... bxa6 {[%clk 0:02:20.6]} 35. Rb8 {[%clk 0:01:41.6]} 35... Ke7 {[%clk
0:02:20]} 36. Ra8 {[%clk 0:01:43.5]} 36... Nc6 {[%clk 0:02:15.3]} 37. Bb5 {[%clk
0:01:15.4]} 37... Rc1 {[%clk 0:01:35.8]} 38. Rxa6 {[%clk 0:01:10.4]} 38... Nxd4
{[%clk 0:01:37.1]} 39. Ra7+ {[%clk 0:01:11.7]} 39... Kd8 {[%clk 0:01:35.8]} 40.
Ra8+ {[%clk 0:00:51]} 40... Kc7 {[%clk 0:01:29]} 41. Be8 {[%clk 0:00:32.8]}
41... g5 {[%clk 0:01:11.2]} 42. h3 {[%clk 0:00:28]} 42... f6 {[%clk 0:01:09.4]}
43. Ra7+ {[%clk 0:00:21.7]} 43... Kb6 {[%clk 0:01:04.2]} 44. Rxg7 {[%clk
0:00:21.7]} 44... fxe5 {[%clk 0:01:05.7]} 45. Rxg5 {[%clk 0:00:18.4]} 45... e4
{[%clk 0:01:07.3]} 46. Rg6 {[%clk 0:00:17.2]} 46... Kc5 {[%clk 0:01:04.7]} 47.
h4 {[%clk 0:00:18.1]} 47... Rc2 {[%clk 0:01:04.8]} 48. h5 {[%clk 0:00:18.3]}
48... e3 {[%clk 0:01:05.8]} 49. h6 {[%clk 0:00:11.3]} 49... Rxf2+ {[%clk
0:01:05.7]} 50. Kh3 {[%clk 0:00:12.4]} 50... e2 {[%clk 0:01:07.1]} 51. h7 {[%clk
0:00:05.1]} 51... e1=Q {[%clk 0:01:05.1]} 0-1

[Event "*** Titled Tuesday 3|2 Blitz"]
[Site "Chess.com"]
[Date "2016.02.02"]
[Round "2"]
[White "chesstatour"]
[Black "AungTZ"]
[Result "0-1"]
[WhiteElo "1957"]
[BlackElo "2100"]
[TimeControl "180+2"]
[EndTime "17:21:45 PST"]
[Termination "AungTZ won on time"]

1. c4 {[%clk 0:03:01.9]} 1... e5 {[%clk 0:02:01.5]} 2. Nc3 {[%clk 0:03:00.7]}
2... Nf6 {[%clk 0:02:02.3]} 3. Nf3 {[%clk 0:02:59.9]} 3... Nc6 {[%clk 0:02:02]}
4. d4 {[%clk 0:02:59.3]} 4... exd4 {[%clk 0:02:02.7]} 5. Nxd4 {[%clk 0:03:01.2]}
5... Be7 {[%clk 0:02:04.3]} 6. g3 {[%clk 0:02:59.9]} 6... O-O {[%clk 0:02:04.6]}
7. Bg2 {[%clk 0:03:01.3]} 7... Nxd4 {[%clk 0:02:03.8]} 8. Qxd4 {[%clk
0:03:01.6]} 8... d6 {[%clk 0:02:05.7]} 9. O-O {[%clk 0:03:02.3]} 9... c6 {[%clk
0:02:05.7]} 10. Bf4 {[%clk 0:03:02.7]} 10... Qb6 {[%clk 0:01:59.9]} 11. Qxb6
{[%clk 0:02:26.2]} 11... axb6 {[%clk 0:02:00.7]} 12. Rfd1 {[%clk 0:02:28.1]}
12... Rd8 {[%clk 0:02:01]} 13. Rd2 {[%clk 0:02:27.8]} 13... Be6 {[%clk
0:02:01.6]} 14. b3 {[%clk 0:02:26.2]} 14... Ne8 {[%clk 0:02:01.1]} 15. Rad1
{[%clk 0:02:24.4]} 15... Rdc8 {[%clk 0:01:49.7]} 16. e4 {[%clk 0:02:18.2]} 16...
h6 {[%clk 0:01:48]} 17. f3 {[%clk 0:01:35.1]} 17... Bf6 {[%clk 0:01:40.1]} 18.
Na4 {[%clk 0:01:33.9]} 18... Ra6 {[%clk 0:01:18]} 19. Bf1 {[%clk 0:01:34.2]}
19... c5 {[%clk 0:01:11.6]} 20. Be3 {[%clk 0:01:08]} 20... Bd7 {[%clk 0:01:12]}
21. Rb1 {[%clk 0:00:43]} 21... Bxa4 {[%clk 0:00:56.8]} 22. bxa4 {[%clk
0:00:44.9]} 22... Bc3 {[%clk 0:00:56.8]} 23. Rd3 {[%clk 0:00:35.8]} 23... Be5
{[%clk 0:00:50.8]} 24. f4 {[%clk 0:00:15.5]} 24... Bf6 {[%clk 0:00:48.1]} 25.
Rdb3 {[%clk 0:00:10.3]} 25... Bd8 {[%clk 0:00:46.1]} 26. a5 {[%clk 0:00:05]}
26... Rxa5 {[%clk 0:00:41.2]} 27. a3 {[%clk 0:00:06.4]} 27... Nf6 {[%clk
0:00:38.9]} 28. Bg2 {[%clk 0:00:06.8]} 28... Bc7 {[%clk 0:00:37.1]} 29. h3
{[%clk 0:00:07.3]} 29... Re8 {[%clk 0:00:37.3]} 30. e5 {[%clk 0:00:05.7]} 30...
dxe5 {[%clk 0:00:36.1]} 31. Bxb7 {[%clk 0:00:06.7]} 31... exf4 {[%clk
0:00:34.3]} 32. Bxf4 {[%clk 0:00:08.6]} 32... Bxf4 {[%clk 0:00:34.2]} 33. gxf4
{[%clk 0:00:10.5]} 33... Re2 {[%clk 0:00:24.5]} 34. Bf3 {[%clk 0:00:09.5]} 34...
Ra2 {[%clk 0:00:24.1]} 35. Rxb6 {[%clk 0:00:08.2]} 35... R5xa3 {[%clk
0:00:23.4]} 36. R1b3 {[%clk 0:00:07.8]} 36... Rxb3 {[%clk 0:00:22.8]} 37. Rxb3
{[%clk 0:00:09.7]} 37... g6 {[%clk 0:00:23.5]} 38. Rb5 {[%clk 0:00:09.5]} 38...
Kg7 {[%clk 0:00:24]} 39. Rxc5 {[%clk 0:00:10.3]} 39... Nh5 {[%clk 0:00:25.1]}
40. f5 {[%clk 0:00:10]} 40... Nf4 {[%clk 0:00:25.3]} 41. h4 {[%clk 0:00:07.6]}
41... Rc2 {[%clk 0:00:25.3]} 42. Rc7 {[%clk 0:00:05.8]} 42... gxf5 {[%clk
0:00:16.6]} 43. Kf1 {[%clk 0:00:05.2]} 43... Ne6 {[%clk 0:00:16.3]} 44. Rc5
{[%clk 0:00:03.9]} 44... Nd4 {[%clk 0:00:16.8]} 0-1

[Event "*** Titled Tuesday 3|2 Blitz"]
[Site "Chess.com"]
[Date "2016.02.02"]
[Round "2"]
[White "ZEN-22"]
[Black "ItalianMachine"]
[Result "1-0"]
[WhiteElo "2377"]
[BlackElo "2232"]
[TimeControl "180+2"]
[EndTime "17:22:13 PST"]
[Termination "ZEN-22 won by resignation"]

1. g3 {[%clk 0:03:01.5]} 1... Nf6 {[%clk 0:03:00.5]} 2. Bg2 {[%clk 0:03:03.4]}
2... g6 {[%clk 0:03:01.9]} 3. Nf3 {[%clk 0:03:04.8]} 3... Bg7 {[%clk 0:03:03.4]}
4. d3 {[%clk 0:03:06.7]} 4... O-O {[%clk 0:03:04.5]} 5. e4 {[%clk 0:03:07.8]}
5... d6 {[%clk 0:03:03.1]} 6. e5 {[%clk 0:03:08.8]} 6... Ne8 {[%clk 0:03:02.8]}
7. exd6 {[%clk 0:03:04.9]} 7... cxd6 {[%clk 0:03:00.9]} 8. O-O {[%clk
0:03:06.8]} 8... Nc6 {[%clk 0:03:01.8]} 9. Re1 {[%clk 0:03:07.2]} 9... Bg4
{[%clk 0:03:01.7]} 10. c3 {[%clk 0:03:08.7]} 10... Rc8 {[%clk 0:03:00.4]} 11. h3
{[%clk 0:03:09.2]} 11... Bd7 {[%clk 0:02:54.2]} 12. d4 {[%clk 0:03:09.2]} 12...
e5 {[%clk 0:02:48.8]} 13. Bg5 {[%clk 0:02:57.1]} 13... Qb6 {[%clk 0:02:49.1]}
14. dxe5 {[%clk 0:02:44.1]} 14... Qxb2 {[%clk 0:02:49.2]} 15. Nbd2 {[%clk
0:02:43.1]} 15... h6 {[%clk 0:02:42.1]} 16. Nc4 {[%clk 0:02:34.9]} 16... Qb5
{[%clk 0:02:39.2]} 17. Nxd6 {[%clk 0:02:31.9]} 17... Nxd6 {[%clk 0:02:24.4]} 18.
Qxd6 {[%clk 0:02:33.8]} 18... Be6 {[%clk 0:02:03.5]} 19. Bf6 {[%clk 0:02:27.5]}
19... Qa5 {[%clk 0:01:53.4]} 20. Nd4 {[%clk 0:02:20.8]} 20... Nxd4 {[%clk
0:01:44.7]} 21. cxd4 {[%clk 0:02:21.3]} 21... Bxf6 {[%clk 0:01:31.9]} 22. exf6
{[%clk 0:02:21.9]} 22... Rfd8 {[%clk 0:01:33.2]} 23. Qf4 {[%clk 0:02:22.7]}
23... g5 {[%clk 0:01:30.8]} 24. Qf3 {[%clk 0:02:10.2]} 24... Qf5 {[%clk
0:00:56.9]} 25. Qxf5 {[%clk 0:02:02.4]} 25... Bxf5 {[%clk 0:00:57.9]} 26. d5
{[%clk 0:02:00.5]} 26... Rd6 {[%clk 0:00:56.3]} 27. g4 {[%clk 0:01:53.7]} 27...
Bg6 {[%clk 0:00:53.7]} 28. Re7 {[%clk 0:01:54.5]} 28... Rb8 {[%clk 0:00:51.3]}
29. Rd1 {[%clk 0:01:49.6]} 29... a5 {[%clk 0:00:49.6]} 30. a3 {[%clk 0:01:46.5]}
30... b5 {[%clk 0:00:50.2]} 31. Ra7 {[%clk 0:01:47.9]} 31... b4 {[%clk 0:00:51]}
32. axb4 {[%clk 0:01:41.7]} 32... axb4 {[%clk 0:00:52.9]} 33. Rd2 {[%clk
0:01:40.9]} 33... b3 {[%clk 0:00:46.1]} 34. Rb2 {[%clk 0:01:40.8]} 34... Rxf6
{[%clk 0:00:47.3]} 35. Ra3 {[%clk 0:01:24.1]} 35... Rfb6 {[%clk 0:00:48.2]} 36.
d6 {[%clk 0:01:24.2]} 36... Kf8 {[%clk 0:00:42.4]} 37. d7 {[%clk 0:01:24.2]}
37... Ke7 {[%clk 0:00:43]} 38. Ra7 {[%clk 0:01:24.1]} 38... Bc2 {[%clk
0:00:37.8]} 39. Bd5 {[%clk 0:01:10.8]} 39... Rd6 {[%clk 0:00:31.5]} 40. d8=Q+
{[%clk 0:01:10.5]} 40... Kxd8 {[%clk 0:00:32.1]} 41. Bxf7 {[%clk 0:01:12]} 41...
Rd1+ {[%clk 0:00:28.7]} 42. Kh2 {[%clk 0:01:12.4]} 42... Rb1 {[%clk 0:00:30.3]}
43. Rxb1 {[%clk 0:01:02.6]} 43... Bxb1 {[%clk 0:00:32.2]} 44. Bxb3 {[%clk
0:00:57.8]} 44... Rxb3 {[%clk 0:00:34.1]} 45. Ra6 {[%clk 0:00:58.7]} 45... Bd3
{[%clk 0:00:16.7]} 46. Rxh6 {[%clk 0:00:58.3]} 46... Bf1 {[%clk 0:00:17.8]} 47.
Rh5 {[%clk 0:00:52.5]} 47... Ke7 {[%clk 0:00:16.8]} 48. Rh6 {[%clk 0:00:49.1]}
48... Rf3 {[%clk 0:00:15.1]} 49. h4 {[%clk 0:00:48]} 49... gxh4 {[%clk
0:00:15.8]} 50. Kg1 {[%clk 0:00:45.1]} 50... Bd3 {[%clk 0:00:14.3]} 51. Rxh4
{[%clk 0:00:45.9]} 51... Kf6 {[%clk 0:00:15.7]} 52. Kg2 {[%clk 0:00:41]} 52...
Rf4 {[%clk 0:00:13.7]} 53. Kg3 {[%clk 0:00:41.3]} 53... Re4 {[%clk 0:00:10.3]}
54. Rh6+ {[%clk 0:00:41.3]} 54... Kg5 {[%clk 0:00:11.2]} 55. Rd6 {[%clk
0:00:42.7]} 55... Be2 {[%clk 0:00:11.3]} 56. f4+ {[%clk 0:00:41.6]} 56... Rxf4
{[%clk 0:00:10.6]} 57. Rd5+ {[%clk 0:00:42.9]} 1-0

[Event "*** Titled Tuesday 3|2 Blitz"]
[Site "Chess.com"]
[Date "2016.02.02"]
[Round "2"]
[White "GMHess"]
[Black "tigra"]
[Result "1-0"]
[WhiteElo "2485"]
[BlackElo "2411"]
[TimeControl "180+2"]
[EndTime "17:22:30 PST"]
[Termination "GMHess won on time"]

1. b3 {[%clk 0:03:01.9]} 1... e5 {[%clk 0:02:58.9]} 2. Bb2 {[%clk 0:02:57.2]}
2... d6 {[%clk 0:02:57.6]} 3. e3 {[%clk 0:02:58]} 3... Nf6 {[%clk 0:02:57.5]} 4.
c4 {[%clk 0:02:57.2]} 4... g6 {[%clk 0:02:58]} 5. Nf3 {[%clk 0:02:56.5]} 5...
Bg7 {[%clk 0:02:58.8]} 6. Be2 {[%clk 0:02:58.1]} 6... O-O {[%clk 0:02:59.4]} 7.
O-O {[%clk 0:02:59.4]} 7... e4 {[%clk 0:03:00.4]} 8. Nd4 {[%clk 0:02:59.6]} 8...
Re8 {[%clk 0:02:58.4]} 9. Nc3 {[%clk 0:03:00.3]} 9... Nbd7 {[%clk 0:02:58.3]}
10. f3 {[%clk 0:02:53.6]} 10... Nc5 {[%clk 0:02:54.9]} 11. b4 {[%clk 0:02:53]}
11... exf3 {[%clk 0:02:52.3]} 12. Nxf3 {[%clk 0:02:43.4]} 12... Ne6 {[%clk
0:02:42.4]} 13. Qb3 {[%clk 0:02:34.2]} 13... a5 {[%clk 0:02:41.9]} 14. a3 {[%clk
0:02:33.1]} 14... b6 {[%clk 0:02:42.5]} 15. Nd5 {[%clk 0:02:26]} 15... Bb7
{[%clk 0:02:41.7]} 16. Rae1 {[%clk 0:01:18.3]} 16... Bc6 {[%clk 0:02:08.1]} 17.
Bc3 {[%clk 0:00:42.8]} 17... axb4 {[%clk 0:02:08.1]} 18. axb4 {[%clk 0:00:37.3]}
18... Ne4 {[%clk 0:01:52.9]} 19. Bxg7 {[%clk 0:00:32.7]} 19... Nxg7 {[%clk
0:01:52.2]} 20. Qb2 {[%clk 0:00:26.1]} 20... f5 {[%clk 0:01:50.4]} 21. Nd4
{[%clk 0:00:26.8]} 21... Bb7 {[%clk 0:01:40.4]} 22. d3 {[%clk 0:00:27.8]} 22...
Bxd5 {[%clk 0:01:40.6]} 23. cxd5 {[%clk 0:00:28.2]} 23... Ng5 {[%clk 0:01:37]}
24. Nc6 {[%clk 0:00:25.3]} 24... Qd7 {[%clk 0:01:37.7]} 25. Bd1 {[%clk
0:00:16.7]} 25... Nf7 {[%clk 0:01:37.3]} 26. Bb3 {[%clk 0:00:14.4]} 26... Ne5
{[%clk 0:01:37.1]} 27. Qc2 {[%clk 0:00:10.4]} 27... Kh8 {[%clk 0:01:25.7]} 28.
e4 {[%clk 0:00:06.7]} 28... fxe4 {[%clk 0:01:22.2]} 29. Rxe4 {[%clk 0:00:05.8]}
29... Nf5 {[%clk 0:01:19.1]} 30. Rfe1 {[%clk 0:00:05.3]} 30... h5 {[%clk
0:00:29]} 31. Qc3 {[%clk 0:00:06.5]} 31... Kh7 {[%clk 0:00:29.6]} 32. Nxe5
{[%clk 0:00:07.4]} 32... dxe5 {[%clk 0:00:30.9]} 33. Rxe5 {[%clk 0:00:09.3]}
33... Nd6 {[%clk 0:00:24.2]} 34. Re6 {[%clk 0:00:09.6]} 34... Qf7 {[%clk
0:00:24.1]} 35. Qc6 {[%clk 0:00:08.9]} 35... Rad8 {[%clk 0:00:21.7]} 36. h3
{[%clk 0:00:08.5]} 36... Kh6 {[%clk 0:00:18.5]} 37. Ba4 {[%clk 0:00:09.6]} 37...
Rxe6 {[%clk 0:00:17.9]} 38. dxe6 {[%clk 0:00:11.5]} 38... Qe7 {[%clk 0:00:19.4]}
39. Qc1+ {[%clk 0:00:12.6]} 39... Kh7 {[%clk 0:00:20]} 40. Bd7 {[%clk
0:00:14.2]} 40... c5 {[%clk 0:00:11.3]} 41. bxc5 {[%clk 0:00:15]} 41... bxc5
{[%clk 0:00:12.9]} 42. Re5 {[%clk 0:00:12.9]} 42... Nf5 {[%clk 0:00:07.1]} 43.
Qxc5 {[%clk 0:00:12.7]} 43... Qxc5+ {[%clk 0:00:05]} 44. Rxc5 {[%clk 0:00:14.6]}
44... Ne7 {[%clk 0:00:06.1]} 45. d4 {[%clk 0:00:13.9]} 45... Kg7 {[%clk
0:00:05.9]} 46. d5 {[%clk 0:00:13.3]} 46... Nf5 {[%clk 0:00:07.1]} 47. g4 {[%clk
0:00:13.5]} 47... hxg4 {[%clk 0:00:07.3]} 48. hxg4 {[%clk 0:00:15.4]} 48... Nd6
{[%clk 0:00:08.4]} 49. Rc6 {[%clk 0:00:15.5]} 49... Nf7 {[%clk 0:00:03.6]} 50.
e7 {[%clk 0:00:13.3]} 50... Rxd7 {[%clk 0:00:03.2]} 51. e8=Q {[%clk 0:00:14.6]}
51... Rxd5 {[%clk 0:00:04.8]} 52. Rc7 {[%clk 0:00:15.5]} 52... Rd1+ {[%clk
0:00:04.5]} 53. Kf2 {[%clk 0:00:16.8]} 53... Rd2+ {[%clk 0:00:04.6]} 54. Ke1
{[%clk 0:00:17.9]} 1-0

[Event "*** Titled Tuesday 3|2 Blitz"]
[Site "Chess.com"]
[Date "2016.02.02"]
[Round "2"]
[White "brauliocuarta"]
[Black "spectralsoul"]
[Result "0-1"]
[WhiteElo "1964"]
[BlackElo "2557"]
[TimeControl "180+2"]
[EndTime "17:25:03 PST"]
[Termination "spectralsoul won by resignation"]

1. d4 {[%clk 0:03:01.9]} 1... Nf6 {[%clk 0:03:00.5]} 2. c4 {[%clk 0:03:03.4]}
2... e6 {[%clk 0:03:01.6]} 3. Nc3 {[%clk 0:03:04.9]} 3... Bb4 {[%clk 0:03:02.8]}
4. e3 {[%clk 0:03:06.5]} 4... c5 {[%clk 0:03:03.1]} 5. Ne2 {[%clk 0:03:08.1]}
5... b6 {[%clk 0:02:59.5]} 6. a3 {[%clk 0:03:07.3]} 6... Ba5 {[%clk 0:03:00.9]}
7. Rb1 {[%clk 0:03:08.2]} 7... Na6 {[%clk 0:03:02.2]} 8. g3 {[%clk 0:03:07.7]}
8... Bb7 {[%clk 0:03:01.9]} 9. d5 {[%clk 0:03:09.3]} 9... O-O {[%clk 0:02:53.2]}
10. Bg2 {[%clk 0:03:10.6]} 10... exd5 {[%clk 0:02:54.7]} 11. cxd5 {[%clk
0:02:58.2]} 11... Re8 {[%clk 0:02:55.3]} 12. O-O {[%clk 0:02:58]} 12... d6
{[%clk 0:02:54.6]} 13. e4 {[%clk 0:02:46.7]} 13... c4 {[%clk 0:02:43.7]} 14. Be3
{[%clk 0:02:26.5]} 14... Nc5 {[%clk 0:02:40.7]} 15. Bxc5 {[%clk 0:02:27.4]}
15... bxc5 {[%clk 0:02:28.5]} 16. Qa4 {[%clk 0:02:19.5]} 16... Ba6 {[%clk
0:02:19]} 17. Rfd1 {[%clk 0:01:42.7]} 17... Rb8 {[%clk 0:02:19.3]} 18. h3 {[%clk
0:01:09.3]} 18... h5 {[%clk 0:02:17.2]} 19. f4 {[%clk 0:01:06.4]} 19... Rb3
{[%clk 0:01:36.9]} 20. Bf3 {[%clk 0:00:57.2]} 20... Qb6 {[%clk 0:01:09.3]} 21.
g4 {[%clk 0:00:43.4]} 21... hxg4 {[%clk 0:01:08.8]} 22. hxg4 {[%clk 0:00:45.3]}
22... Re7 {[%clk 0:00:35.1]} 23. g5 {[%clk 0:00:44.3]} 23... Ne8 {[%clk
0:00:35.9]} 24. Qc6 {[%clk 0:00:42.6]} 24... Bxc3 {[%clk 0:00:19.6]} 25. Nxc3
{[%clk 0:00:38.3]} 25... Rxb2 {[%clk 0:00:15.7]} 26. Qxb6 {[%clk 0:00:16.9]}
26... Rxb6 {[%clk 0:00:17.2]} 27. Rxb6 {[%clk 0:00:17.3]} 27... axb6 {[%clk
0:00:19.1]} 28. Rb1 {[%clk 0:00:17.7]} 28... Rb7 {[%clk 0:00:18.6]} 29. e5
{[%clk 0:00:17.5]} 29... Kf8 {[%clk 0:00:19.9]} 30. a4 {[%clk 0:00:18.1]} 30...
Ke7 {[%clk 0:00:20.3]} 31. Kf2 {[%clk 0:00:17.5]} 31... Rb8 {[%clk 0:00:18.9]}
32. Ke3 {[%clk 0:00:17.9]} 32... Nc7 {[%clk 0:00:17.4]} 33. exd6+ {[%clk
0:00:07.1]} 33... Kxd6 {[%clk 0:00:18.8]} 34. Ne4+ {[%clk 0:00:08.2]} 34... Kxd5
{[%clk 0:00:13.8]} 35. Rd1+ {[%clk 0:00:08]} 35... Ke6 {[%clk 0:00:09.5]} 36.
Bg4+ {[%clk 0:00:08.3]} 36... Ke7 {[%clk 0:00:08.8]} 37. Rd7+ {[%clk 0:00:09.9]}
37... Kf8 {[%clk 0:00:10.3]} 38. Rxc7 {[%clk 0:00:09.4]} 38... b5 {[%clk
0:00:12.2]} 39. axb5 {[%clk 0:00:09.5]} 39... Bxb5 {[%clk 0:00:14.1]} 40. Nd6
{[%clk 0:00:11.1]} 40... Be8 {[%clk 0:00:12.6]} 41. Rc8 {[%clk 0:00:12.3]} 41...
Rb3+ {[%clk 0:00:11.9]} 42. Ke2 {[%clk 0:00:09.5]} 42... Ke7 {[%clk 0:00:12.7]}
43. Nxe8 {[%clk 0:00:09.6]} 43... Rb2+ {[%clk 0:00:11]} 44. Ke3 {[%clk
0:00:09.8]} 44... Rb3+ {[%clk 0:00:11.9]} 45. Ke4 {[%clk 0:00:10.6]} 45... c3
{[%clk 0:00:10.2]} 46. Rxc5 {[%clk 0:00:09.3]} 46... Kxe8 {[%clk 0:00:10.3]} 47.
Kd3 {[%clk 0:00:10.4]} 47... Rb4 {[%clk 0:00:10.5]} 48. Kxc3 {[%clk 0:00:06]}
48... Rxf4 {[%clk 0:00:11]} 49. Be2 {[%clk 0:00:05.1]} 49... Ke7 {[%clk
0:00:10.4]} 50. Bb5 {[%clk 0:00:06.3]} 50... Kd6 {[%clk 0:00:10.6]} 51. Rc6+
{[%clk 0:00:06.5]} 51... Ke5 {[%clk 0:00:11.9]} 52. Rc7 {[%clk 0:00:06.7]} 52...
Rf5 {[%clk 0:00:10.7]} 53. Kd3 {[%clk 0:00:07]} 53... Kf4 {[%clk 0:00:10.5]} 54.
Rc4+ {[%clk 0:00:05.6]} 54... Kxg5 {[%clk 0:00:10.8]} 55. Bd7 {[%clk 0:00:07.2]}
55... Re5 {[%clk 0:00:11]} 56. Rg4+ {[%clk 0:00:07.6]} 56... Kf6 {[%clk
0:00:12]} 57. Rf4+ {[%clk 0:00:09]} 57... Ke7 {[%clk 0:00:13.1]} 58. Bg4 {[%clk
0:00:09.7]} 58... Rd5+ {[%clk 0:00:13.3]} 59. Kc4 {[%clk 0:00:09.7]} 59... Rg5
{[%clk 0:00:13.8]} 60. Kd4 {[%clk 0:00:09.6]} 60... f6 {[%clk 0:00:14.6]} 61.
Ke4 {[%clk 0:00:10.3]} 61... Re5+ {[%clk 0:00:15]} 62. Kd4 {[%clk 0:00:11]}
62... Ra5 {[%clk 0:00:16.8]} 63. Re4+ {[%clk 0:00:11.1]} 63... Kf8 {[%clk
0:00:17.5]} 64. Bd7 {[%clk 0:00:10.5]} 64... g5 {[%clk 0:00:16.8]} 65. Ke3
{[%clk 0:00:09.4]} 65... Kf7 {[%clk 0:00:16.8]} 66. Kf2 {[%clk 0:00:09.4]} 66...
Rc5 {[%clk 0:00:15.8]} 67. Kg3 {[%clk 0:00:10.1]} 67... f5 {[%clk 0:00:15.5]}
68. Re1 {[%clk 0:00:06.7]} 68... Kf6 {[%clk 0:00:15.5]} 69. Rf1 {[%clk
0:00:06.5]} 69... f4+ {[%clk 0:00:12.8]} 70. Kg4 {[%clk 0:00:07.1]} 70... Rc3
{[%clk 0:00:12.9]} 71. Rf3 {[%clk 0:00:07.9]} 71... Rc1 {[%clk 0:00:12.8]} 72.
Ra3 {[%clk 0:00:07.8]} 72... Rg1+ {[%clk 0:00:13.1]} 73. Kh3 {[%clk 0:00:06.8]}
73... Ke5 {[%clk 0:00:12.6]} 74. Ra5+ {[%clk 0:00:07.1]} 74... Kd4 {[%clk
0:00:13.5]} 75. Bg4 {[%clk 0:00:06.6]} 75... Rg3+ {[%clk 0:00:13.7]} 76. Kh2
{[%clk 0:00:07.3]} 76... Rxg4 {[%clk 0:00:15.6]} 77. Kh3 {[%clk 0:00:07.8]}
77... Rg3+ {[%clk 0:00:16.6]} 78. Kh2 {[%clk 0:00:08.8]} 78... Ke4 {[%clk
0:00:18.5]} 79. Rb5 {[%clk 0:00:05.3]} 79... g4 {[%clk 0:00:15.8]} 80. Rb4+
{[%clk 0:00:05.4]} 80... Ke5 {[%clk 0:00:17.1]} 81. Rb5+ {[%clk 0:00:06]} 81...
Ke6 {[%clk 0:00:17.7]} 82. Ra5 {[%clk 0:00:06.8]} 82... Kf6 {[%clk 0:00:18.4]}
83. Rh5 {[%clk 0:00:06.6]} 83... Kg6 {[%clk 0:00:19]} 84. Ra5 {[%clk 0:00:06]}
84... Rd3 {[%clk 0:00:19.9]} 85. Rh5 {[%clk 0:00:05.9]} 85... Kxh5 {[%clk
0:00:20.4]} 0-1

[Event "*** Titled Tuesday 3|2 Blitz"]
[Site "Chess.com"]
[Date "2016.02.02"]
[Round "3"]
[White "davidarenas1224"]
[Black "Winehouse83"]
[Result "1-0"]
[WhiteElo "2083"]
[BlackElo "2281"]
[TimeControl "180+2"]
[EndTime "17:27:56 PST"]
[Termination "davidarenas1224 won by resignation"]

1. e4 {[%clk 0:03:01.9]} 1... e5 {[%clk 0:02:59.6]} 2. Nf3 {[%clk 0:02:58.7]}
2... Nc6 {[%clk 0:02:59.8]} 3. Bb5 {[%clk 0:02:57]} 3... a6 {[%clk 0:03:00.8]}
4. Ba4 {[%clk 0:02:57.2]} 4... Nf6 {[%clk 0:03:02.2]} 5. O-O {[%clk 0:02:56.4]}
5... b5 {[%clk 0:03:03.9]} 6. Bb3 {[%clk 0:02:56.1]} 6... Bc5 {[%clk 0:03:05.6]}
7. d3 {[%clk 0:02:49.4]} 7... O-O {[%clk 0:03:04.7]} 8. a4 {[%clk 0:02:48.6]}
8... Bb7 {[%clk 0:03:04.9]} 9. axb5 {[%clk 0:02:47.2]} 9... axb5 {[%clk
0:03:05.5]} 10. Rxa8 {[%clk 0:02:49.1]} 10... Bxa8 {[%clk 0:03:06.6]} 11. Nc3
{[%clk 0:02:50]} 11... b4 {[%clk 0:03:01.8]} 12. Nd5 {[%clk 0:02:49.7]} 12...
Nxd5 {[%clk 0:03:01.3]} 13. Bxd5 {[%clk 0:02:50.2]} 13... d6 {[%clk 0:02:59.6]}
14. c3 {[%clk 0:02:49.2]} 14... bxc3 {[%clk 0:02:59.2]} 15. bxc3 {[%clk
0:02:51.1]} 15... Ne7 {[%clk 0:02:50.7]} 16. Bc4 {[%clk 0:02:49.9]} 16... Ng6
{[%clk 0:02:35.4]} 17. Be3 {[%clk 0:02:43.7]} 17... Qf6 {[%clk 0:02:19.6]} 18.
Bg5 {[%clk 0:02:34]} 1-0

[Event "*** Titled Tuesday 3|2 Blitz"]
[Site "Chess.com"]
[Date "2016.02.02"]
[Round "3"]
[White "Malev212"]
[Black "Hikaru"]
[Result "0-1"]
[WhiteElo "2327"]
[BlackElo "2832"]
[TimeControl "180+2"]
[EndTime "17:28:24 PST"]
[Termination "Hikaru won by resignation"]

1. Nf3 {[%clk 0:02:48.9]} 1... d6 {[%clk 0:02:58.8]} 2. d4 {[%clk 0:02:47.5]}
2... f5 {[%clk 0:03:00]} 3. g3 {[%clk 0:02:46.5]} 3... g6 {[%clk 0:03:00.7]} 4.
Bg2 {[%clk 0:02:47.1]} 4... Bg7 {[%clk 0:03:02.3]} 5. O-O {[%clk 0:02:47.8]}
5... Nf6 {[%clk 0:03:03.9]} 6. c4 {[%clk 0:02:46.4]} 6... O-O {[%clk 0:03:05.1]}
7. Nc3 {[%clk 0:02:47.3]} 7... c6 {[%clk 0:03:06.7]} 8. d5 {[%clk 0:02:47.5]}
8... e5 {[%clk 0:03:07.3]} 9. e4 {[%clk 0:02:48.3]} 9... f4 {[%clk 0:02:59.4]}
10. gxf4 {[%clk 0:02:32.4]} 10... Bg4 {[%clk 0:02:58.3]} 11. fxe5 {[%clk
0:01:48.2]} 11... Nfd7 {[%clk 0:02:56.5]} 12. Qb3 {[%clk 0:01:29.9]} 12... Bxf3
{[%clk 0:02:43.1]} 13. Qxb7 {[%clk 0:01:23.4]} 13... Bxe5 {[%clk 0:02:41.3]} 0-1